fUSD/lending_fUSD_20260415
["ID","MTS","AMOUNT","RATE_DAILY","PERIOD"]
[420508758,1776184247955,-160.0,0.00014132,7]
[420508760,1776184247964,-413.571414,0.00014132,7]
[420508762,1776184247975,-667.142828,0.00014132,7]
[420508765,1776184247986,-160.0,0.00014132,7]
[420508766,1776184247997,-1181.767546,0.00014132,7]
[420508768,1776184248006,-2203.535093,0.00014132,7]
[420508770,1776184248017,-160.0,0.00014132,7]
[420508772,1776184248026,-430.558145,0.00014132,7]
[420508774,1776184248038,-701.116291,0.00014132,7]
[420508776,1776184248047,-188.919513,0.00014132,2]
[420508778,1776184248057,-320.909287,0.00014132,7]
[420508780,1776184248067,-160.0,0.00014132,7]
[420508782,1776184248078,-884.97264,0.00014132,7]
[420508784,1776184248088,-1609.94528,0.00014132,7]
[420508787,1776184248099,-229.087135,0.00014132,2]
[420508788,1776184248109,-150.00000001,0.00014137,2]
[420508790,1776184248120,-150.0,0.00014137,2]
[420508792,1776184248129,-150.0,0.00014137,2]
[420508794,1776184248138,-150.0,0.00014137,2]
[420508796,1776184248148,-150.0,0.00014137,2]
[420508798,1776184248159,-150.0,0.00014137,2]
[420508800,1776184248168,-151.0,0.00014144,2]
[420508802,1776184248178,-500.0,0.00014146,2]
[420508804,1776184248189,-500.0,0.00014146,2]
[420508806,1776184248199,-500.0,0.00014146,2]
[420508808,1776184248209,-500.0,0.00014146,2]
[420508810,1776184248219,-500.0,0.00014146,2]
[420508812,1776184248228,-500.0,0.00014146,2]
[420508814,1776184248238,-500.0,0.00014146,2]
[420508816,1776184248247,-500.0,0.00014146,2]
[420508818,1776184248257,-500.0,0.00014146,2]
[420508820,1776184248266,-500.0,0.00014146,2]
[420508822,1776184248276,-500.0,0.00014146,2]
[420508824,1776184248286,-500.0,0.00014146,2]
[420508826,1776184248295,-273.25457151,0.00014146,2]
[420508828,1776184248304,-150.0,0.00014146,2]
[420508830,1776184248313,-500.0,0.00014146,2]
[420508832,1776184248325,-525.45975473,0.00014146,2]
[420508834,1776184248335,-500.0,0.00014146,2]
[420508836,1776184248345,-388.49280634,0.00014146,2]
[420508838,1776184248354,-360.33941872,0.00014146,2]
[420508840,1776184248364,-1199.95308627,0.00014146,5]
[420508842,1776184248374,-308427.6938497,0.00014147,2]
[420508847,1776184248411,-3766.79534422,0.00014147,2]
[420508909,1776184249901,-387.93218086,0.00014147,2]
[420508949,1776184250590,-159200.33088199,0.00014147,2]
[420509107,1776184451547,150.0,0.000165,30]
[420509110,1776184624888,150.0,0.00013105,120]
[420509115,1776185432878,-179.55883432,0.00012525,2]
[420509116,1776185432890,-1075.83150736,0.00012567,2]
[420509117,1776185432903,-370.97500365,0.00012567,2]
[420509118,1776185432915,-53.19348899,0.00012567,2]
[420509119,1776185432925,-571.85958592,0.00012575,2]
[420509120,1776185432942,-3892.57041408,0.00012575,2]
[420509121,1776185432952,-300.0,0.00012624,2]
[420509122,1776185432961,-1200.0,0.00012624,2]
[420509123,1776185432971,-150.0,0.00012625,2]
[420509124,1776185432980,-150.0,0.00012625,2]
[420509125,1776185432990,-150.0,0.00012625,2]
[420509126,1776185433000,-150.0,0.00012625,2]
[420509127,1776185433010,-150.0,0.00012625,2]
[420509128,1776185433021,-259.74988374,0.00012625,2]
[420509129,1776185433032,-150.0,0.00012625,2]
[420509130,1776185433041,-150.0,0.00012625,2]
[420509131,1776185433051,-150.0,0.00012625,2]
[420509132,1776185433061,-150.0,0.00012625,2]
[420509133,1776185433071,-150.0,0.00012625,2]
[420509134,1776185433081,-150.0,0.00012625,2]
[420509135,1776185433090,-150.0,0.00012752,2]
[420509136,1776185433101,-150.0,0.00012858,2]
[420509137,1776185433110,-500.0,0.00012873,2]
[420509138,1776185433120,-500.0,0.00012873,2]
[420509139,1776185433129,-250.96695607,0.00012873,2]
[420509140,1776185433142,-249.03304393,0.00012873,2]
[420509141,1776185433152,-436.24869983,0.00012873,2]
[420509142,1776185433197,-63.75130017,0.00012873,2]
[420509143,1776185433207,-500.0,0.00012873,2]
[420509144,1776185433218,-150.0,0.0001288,2]
[420509145,1776185433228,-277.92741609,0.00012884,2]
[420509146,1776185433239,-22095.222151,0.00012894,2]
[420509147,1776185433251,-934.45208279,0.00012894,2]
[420509148,1776185433269,-175263.52834658,0.00012894,2]
[420509149,1776185433320,-5357.72862831,0.00012894,2]
[420509150,1776185433332,-722.84771587,0.00012894,2]
[420509151,1776185433366,-383.3380771,0.00012894,2]
[420509165,1776185440150,-320.02519672,0.00012893,2]
[420509166,1776185440209,-279.97480328,0.00012893,2]
[420509167,1776185440220,-500.0,0.00012893,2]
[420509168,1776185440230,-189.91784164,0.00012893,2]
[420509169,1776185440240,-30.10735508,0.00012894,2]
[420509170,1776185440255,-3691.55218152,0.00012894,2]
[420509171,1776185440268,-48832.341186,0.00012894,2]
[420509172,1776185440280,-730.938443,0.00012894,2]
[420509176,1776185440573,-1583.41326918,0.00012894,2]
[420509177,1776185440687,-507.18,0.00012894,2]
[420509178,1776185440748,-2769.58067353,0.00012894,2]
[420509179,1776185441073,-1296.88874084,0.00012894,2]
[420509202,1776185443391,-500.0,0.00012893,2]
[420509203,1776185443402,-500.0,0.00012893,2]
[420509204,1776185443425,-500.0,0.00012893,2]
[420509205,1776185443437,-506.87062473,0.00012893,2]
[420509206,1776185443453,-500.0,0.00012893,2]
[420509207,1776185443471,-500.0,0.00012893,2]
[420509208,1776185443481,-500.0,0.00012893,2]
[420509209,1776185443498,-592.96870703,0.00012893,2]
[420509210,1776185443514,-363179.83010682,0.00012894,2]
[420509211,1776185443535,-7765.24741519,0.00012894,2]
[420509212,1776185443560,-894.36834008,0.00012894,2]
[420509213,1776185443573,-680.76275655,0.00012894,2]
[420509214,1776185443620,-1057.89460526,0.00012894,2]
[420509215,1776185443651,-1352.77893697,0.00012894,2]
[420509216,1776185443679,-97362.95887569,0.00012894,2]
[420509217,1776185443774,-493.52154632,0.00012894,2]
[420509218,1776185443879,-5093.48807133,0.00012894,2]
[420509219,1776185443897,-1143.02930338,0.00012894,2]
[420509226,1776185444444,-831.2553122,0.00012894,2]
[420509232,1776185446588,-450.67894535,0.00012894,2]
[420509233,1776185446627,-1362.91705858,0.00012894,2]
[420509234,1776185446665,-804.94870996,0.00012894,2]
[420509235,1776185446850,-1423.40184853,0.00012894,2]
[420509236,1776185447011,-398616.93586545,0.00012894,2]
[420509237,1776185448731,-1123.71239335,0.00012894,2]
[420509238,1776185448905,-9988.02,0.00012894,2]
[420509239,1776185448942,-36796.31375819,0.00012894,2]
[420509240,1776185448970,-150.0,0.00012905,2]
[420509241,1776185448994,-665.6,0.0001293,2]
[420509242,1776185449012,-150.0,0.00012975,2]
[420509243,1776185449030,-150.0,0.00012985,2]
[420509244,1776185449039,-151.0,0.00012986,2]
[420509245,1776185449051,-151.0,0.00012986,2]
[420509246,1776185449069,-151.0,0.00012986,2]
[420509247,1776185449078,-151.0,0.00012986,2]
[420509248,1776185449090,-151.0,0.00012986,2]
[420509249,1776185449104,-151.0,0.00012986,2]
[420509250,1776185449119,-151.0,0.00012986,2]
[420509251,1776185449130,-151.0,0.00012986,2]
[420509252,1776185449140,-151.0,0.00012986,2]
[420509253,1776185449154,-500.0,0.00012986,2]
[420509254,1776185449164,-534.67829723,0.00012986,2]
[420509255,1776185449174,-500.0,0.00012986,2]
[420509256,1776185449184,-22763.77,0.00012994,2]
[420509257,1776185449198,-419.37,0.00013001,2]
[420509258,1776185449208,-150.0,0.00013007,2]
[420509259,1776185449217,-159.52,0.00013068,2]
[420509260,1776185449227,-150.0,0.00013092,2]
[420509261,1776185449241,-150.0,0.00013092,2]
[420509262,1776185449250,-150.0,0.00013092,2]
[420509263,1776185449260,-500.0,0.00013105,2]
[420509264,1776185449269,-3176.581,0.00013105,2]
[420509265,1776185449282,-150.0,0.00013105,2]
[420509266,1776185449292,-14086.93,0.00013106,2]
[420509267,1776185449301,-2000.0,0.0001313,2]
[420509268,1776185449311,-167.73,0.00013132,2]
[420509269,1776185449320,-150.0,0.00013135,2]
[420509270,1776185449331,-150.0,0.00013186,2]
[420509271,1776185449341,-150.0,0.00013262,2]
[420509272,1776185449350,-4314.28854699,0.00013266,2]
[420509273,1776185449360,-150.0,0.00013326,2]
[420509274,1776185449369,-150.0,0.00013326,2]
[420509275,1776185449379,-150.0,0.00013326,2]
[420509276,1776185449388,-150.0,0.00013326,2]
[420509277,1776185449398,-150.0,0.0001339,2]
[420509278,1776185449408,-500.0,0.00013421,2]
[420509279,1776185449418,-500.0,0.00013421,2]
[420509280,1776185449428,-1000.0,0.00013421,2]
[420509281,1776185449438,-150.0,0.00013439,2]
[420509282,1776185449447,-150.0,0.00013466,2]
[420509283,1776185449457,-506.0,0.000135,2]
[420509284,1776185449467,-150.0,0.00013517,2]
[420509285,1776185449476,-150.0,0.0001356,2]
[420509286,1776185449486,-150.0,0.0001356,2]
[420509287,1776185449495,-150.0,0.0001356,2]
[420509288,1776185449506,-179.55883432,0.00013599,2]
[420509289,1776185449516,-1200.0,0.000136,4]
[420509290,1776185449526,-150.0,0.00013645,2]
[420509291,1776185449535,-150.0,0.00013677,2]
[420509292,1776185449545,-1039.58,0.00013699,2]
[420509293,1776185449555,-166.66,0.00013699,2]
[420509294,1776185449565,-200.0,0.00013699,2]
[420509295,1776185449575,-500.0,0.00013699,2]
[420509296,1776185449585,-171.88515002,0.00013699,2]
[420509297,1776185449595,-2400.0,0.000137,5]
[420509298,1776185449604,-150.0,0.00013719,2]
[420509299,1776185449615,-150.39907194,0.00013719,2]
[420509300,1776185449624,-150.0,0.00013747,2]
[420509301,1776185449634,-150.0,0.00013772,2]
[420509302,1776185449644,-2500.0,0.00013778,2]
[420509303,1776185449654,-2500.0,0.00013778,2]
[420509304,1776185449663,-2500.0,0.00013778,2]
[420509305,1776185449674,-2500.0,0.00013778,2]
[420509306,1776185449684,-300.0,0.00013778,2]
[420509307,1776185449693,-300.0,0.00013778,2]
[420509308,1776185449703,-300.0,0.00013778,2]
[420509309,1776185449713,-300.0,0.00013778,2]
[420509310,1776185449723,-300.0,0.00013778,2]
[420509311,1776185449732,-500.0,0.00013778,2]
[420509312,1776185449742,-500.0,0.00013778,2]
[420509313,1776185449753,-500.0,0.00013778,2]
[420509314,1776185449763,-500.0,0.00013778,2]
[420509315,1776185449773,-500.0,0.00013778,2]
[420509316,1776185449783,-310.48220019,0.00013778,2]
[420509317,1776185449792,-150.0,0.00013794,2]
[420509318,1776185449802,-3600.0,0.000138,5]
[420509319,1776185449812,-166.66,0.00013836,2]
[420509320,1776185449822,-420.0,0.00013849,2]
[420509321,1776185449833,-160.0,0.0001386,2]
[420509322,1776185449843,-1680.0,0.00013886,2]
[420509323,1776185449853,-286.26522124,0.00013894,2]
[420509324,1776185449863,-150.0,0.000139,2]
[420509325,1776185449872,-4800.0,0.000139,5]
[420509326,1776185449882,-6333.61160413,0.00013945,2]
[420509327,1776185449892,-1000.0,0.00013947,2]
[420509328,1776185449903,-2500.0,0.00013947,2]
[420509329,1776185449913,-630.40626352,0.00013947,2]
[420509330,1776185449923,-1408.96782726,0.00013947,2]
[420509331,1776185449933,-276.19672284,0.00013953,2]
[420509332,1776185449943,-288.22980515,0.00013953,2]
[420509333,1776185449952,-166.66,0.00013973,2]
[420509334,1776185449962,-500.0,0.00013973,2]
[420509335,1776185449972,-502.06502755,0.00013973,2]
[420509336,1776185449982,-501.29264946,0.00013973,2]
[420509337,1776185449994,-500.0,0.00013973,2]
[420509338,1776185450004,-500.0,0.00013973,2]
[420509339,1776185450013,-257.63869911,0.00013985,2]
[420509340,1776185450024,-505.17185419,0.00013985,2]
[420509341,1776185450034,-200.0,0.00014008,2]
[420509342,1776185450044,-721.12765535,0.00014008,2]
[420509343,1776185450055,-174.61919141,0.00014008,2]
[420509344,1776185450064,-151.0,0.00014008,2]
[420509345,1776185450076,-200.0,0.00014008,2]
[420509346,1776185450088,-500.0,0.00014008,2]
[420509347,1776185450098,-500.0,0.00014008,2]
[420509348,1776185450109,-500.0,0.00014008,2]
[420509349,1776185450120,-500.0,0.00014008,2]
[420509350,1776185450132,-250.0,0.00014008,2]
[420509351,1776185450142,-153.75026935,0.00014008,2]
[420509352,1776185450153,-347.85227654,0.00014026,2]
[420509353,1776185450164,-150.0,0.00014027,2]
[420509354,1776185450182,-150.0,0.00014027,2]
[420509355,1776185450195,-54064.0,0.00014027,2]
[420509356,1776185450206,-150.0,0.00014027,2]
[420509357,1776185450231,-150.0,0.00014027,2]
[420509358,1776185450241,-150.0,0.00014027,2]
[420509359,1776185450266,-150.0,0.00014027,2]
[420509360,1776185450285,-150.0,0.00014027,2]
[420509361,1776185450325,-150.0,0.00014027,2]
[420509362,1776185450341,-150.0,0.00014027,2]
[420509363,1776185450371,-500.0,0.00014046,2]
[420509364,1776185450386,-500.0,0.00014046,2]
[420509365,1776185450418,-211.87,0.00014046,2]
[420509366,1776185450429,-500.0,0.00014046,2]
[420509367,1776185450462,-500.0,0.00014046,2]
[420509368,1776185450479,-634.81054531,0.00014046,2]
[420509369,1776185450502,-500.0,0.00014046,2]
[420509370,1776185450516,-500.0,0.00014046,2]
[420509371,1776185450531,-500.0,0.00014046,2]
[420509372,1776185450544,-500.0,0.00014046,2]
[420509373,1776185450560,-500.0,0.00014046,2]
[420509374,1776185450576,-591.95860575,0.00014046,2]
[420509375,1776185450970,-500.0,0.00014046,2]
[420509376,1776185450997,-500.0,0.00014046,2]
[420509377,1776185451018,-500.0,0.00014046,2]
[420509378,1776185451044,-500.0,0.00014046,2]
[420509379,1776185451059,-500.0,0.00014046,2]
[420509380,1776185451090,-500.0,0.00014046,2]
[420509381,1776185451126,-500.0,0.00014046,2]
[420509382,1776185451165,-500.0,0.00014046,2]
[420509383,1776185451215,-500.0,0.00014046,2]
[420509384,1776185451287,-500.0,0.00014046,2]
[420509385,1776185451333,-19311.92817014,0.00014047,2]
[420509386,1776185452376,-109933.53527542,0.00014047,2]
[420509387,1776185452389,-431.885,0.00014047,2]
[420509388,1776185472435,500.0,8.219e-05,2]
[420509389,1776185472561,150.0,8.219e-05,2]
[420509390,1776185472762,200.0,8.219e-05,2]
[420509391,1776185473006,382.15618835,8.219e-05,2]
[420509392,1776185473071,150.0,8.219e-05,2]
[420509393,1776185473144,150.0,8.219e-05,2]
[420509394,1776185474962,500.0,8.219e-05,2]
[420509395,1776185475076,500.0,8.219e-05,2]
[420509396,1776185475159,500.0,8.219e-05,2]
[420509397,1776185475297,500.0,8.219e-05,2]
[420509398,1776185475424,500.0,8.219e-05,2]
[420509399,1776185475513,500.0,8.219e-05,2]
[420509400,1776185475581,474.80274828,8.219e-05,2]
[420509401,1776185475629,500.0,8.219e-05,2]
[420509402,1776185475772,500.0,8.219e-05,2]
[420509403,1776185475956,500.0,8.219e-05,2]
[420509404,1776185476140,500.0,8.219e-05,2]
[420509405,1776185476195,500.0,8.219e-05,2]
[420509406,1776185476244,150.0,8.219e-05,2]
[420509407,1776185476287,500.0,8.219e-05,2]
[420509408,1776185476327,157.51458138,8.493e-05,2]
[420509409,1776185476362,500.0,8.219e-05,2]
[420509410,1776185476771,350.0,8.219e-05,2]
[420509411,1776185476830,150.0,8.219e-05,2]
[420509412,1776185477694,150.0,8.219e-05,2]
[420509413,1776185478280,131.53648199,8.219e-05,2]
[420509414,1776185478363,18.46351801,8.219e-05,2]
[420509415,1776185478649,213.5793185,8.219e-05,2]
[420509416,1776185479125,150.0,8.219e-05,2]
[420509417,1776185479426,500.0,8.219e-05,2]
[420509418,1776185479608,500.0,8.219e-05,2]
[420509419,1776185479787,500.0,8.219e-05,2]
[420509420,1776185480016,500.0,8.219e-05,2]
[420509421,1776185480216,500.0,8.219e-05,2]
[420509422,1776185480409,502.90383192,8.219e-05,2]
[420509423,1776185491308,449.0,8.219e-05,2]
[420509424,1776185491485,449.0,8.219e-05,2]
[420509425,1776185491670,449.0,8.219e-05,2]
[420509426,1776185491943,449.0,8.219e-05,2]
[420509427,1776185492199,449.0,8.219e-05,2]
[420509428,1776185492861,449.0,8.219e-05,2]
[420509429,1776185492938,449.0,8.219e-05,2]
[420509430,1776185493097,449.0,8.219e-05,2]
[420509431,1776185493255,449.0,8.219e-05,2]
[420509432,1776185493407,449.0,8.219e-05,2]
[420509433,1776185493576,449.0,8.219e-05,2]
[420509434,1776185493780,449.0,8.219e-05,2]
[420509435,1776185493915,449.0,8.219e-05,2]
[420509436,1776185494113,449.0,8.219e-05,2]
[420509437,1776185494297,449.0,8.219e-05,2]
[420509438,1776185494509,449.0,8.219e-05,2]
[420509439,1776185494724,449.0,8.219e-05,2]
[420509440,1776185495158,449.0,8.219e-05,2]
[420509441,1776185495550,500.0,8.219e-05,2]
[420509442,1776185495703,500.0,8.219e-05,2]
[420509443,1776185495752,500.0,8.219e-05,2]
[420509444,1776185495866,500.0,8.219e-05,2]
[420509445,1776185495905,500.0,8.219e-05,2]
[420509446,1776185495946,449.0,8.219e-05,2]
[420509447,1776185496073,500.0,8.219e-05,2]
[420509448,1776185496132,500.0,8.219e-05,2]
[420509449,1776185496267,500.0,8.219e-05,2]
[420509450,1776185496345,228.40105768,8.219e-05,2]
[420509451,1776185498416,500.0,8.219e-05,2]
[420509452,1776185498455,500.0,8.219e-05,2]
[420509453,1776185498536,449.0,8.219e-05,2]
[420509454,1776185498582,500.0,8.219e-05,2]
[420509455,1776185498667,500.0,8.219e-05,2]
[420509456,1776185498748,500.0,8.219e-05,2]
[420509457,1776185498812,500.0,8.219e-05,2]
[420509458,1776185499038,500.0,8.219e-05,2]
[420509459,1776185499137,500.0,8.219e-05,2]
[420509460,1776185499206,424.60894232,8.219e-05,2]
[420509461,1776185499266,75.39105768,8.219e-05,2]
[420509462,1776185499491,500.0,8.219e-05,2]
[420509463,1776185499565,233.00628845,8.219e-05,2]
[420509464,1776185499685,449.0,8.219e-05,2]
[420509465,1776185499753,500.0,8.219e-05,2]
[420509466,1776185499857,500.0,8.219e-05,2]
[420509467,1776185499912,500.0,8.219e-05,2]
[420509468,1776185499949,150.0,8.219e-05,2]
[420509469,1776185499995,150.0,8.219e-05,2]
[420509470,1776185500033,215.47932279,8.219e-05,2]
[420509471,1776185500439,449.0,8.219e-05,2]
[420509472,1776185500765,500.0,8.219e-05,2]
[420509473,1776185500977,500.0,8.219e-05,2]
[420509474,1776185501817,500.0,8.219e-05,2]
[420509475,1776185502047,500.0,8.219e-05,2]
[420509476,1776185502321,500.0,8.219e-05,2]
[420509477,1776185502382,500.0,8.219e-05,2]
[420509478,1776185502525,348.56852731,8.219e-05,2]
[420509479,1776185502646,500.0,8.219e-05,2]
[420509480,1776185502683,449.0,8.219e-05,2]
[420509481,1776185502735,500.0,8.219e-05,2]
[420509482,1776185502825,500.0,8.219e-05,2]
[420509483,1776185502967,500.0,8.219e-05,2]
[420509484,1776185503207,480.56480377,8.219e-05,2]
[420509485,1776185503315,19.43519623,8.219e-05,2]
[420509486,1776185503502,500.0,8.219e-05,2]
[420509487,1776185503741,500.0,8.219e-05,2]
[420509488,1776185503952,500.0,8.219e-05,2]
[420509489,1776185504002,500.0,8.219e-05,2]
[420509490,1776185504121,500.0,8.219e-05,2]
[420509491,1776185504157,500.0,8.219e-05,2]
[420509492,1776185504275,500.0,8.219e-05,2]
[420509493,1776185504307,500.0,8.219e-05,2]
[420509494,1776185504434,500.0,8.219e-05,2]
[420509495,1776185504465,500.0,8.219e-05,2]
[420509496,1776185504610,500.0,8.219e-05,2]
[420509497,1776185504654,500.0,8.219e-05,2]
[420509498,1776185504777,472.0,8.219e-05,2]
[420509499,1776185504846,500.0,8.219e-05,2]
[420509500,1776185504905,500.0,8.219e-05,2]
[420509501,1776185505057,500.0,8.219e-05,2]
[420509502,1776185505677,500.0,8.219e-05,2]
[420509503,1776185505779,451.78459476,8.219e-05,2]
[420509504,1776185505818,500.0,8.219e-05,2]
[420509505,1776185505873,500.0,8.219e-05,2]
[420509506,1776185506041,56.79020901,8.219e-05,2]
[420509507,1776185506064,443.20979099,8.219e-05,2]
[420509508,1776185506393,500.0,8.219e-05,2]
[420509509,1776185506603,500.0,8.219e-05,2]
[420509510,1776185506777,500.0,8.219e-05,2]
[420509511,1776185506950,500.0,8.219e-05,2]
[420509512,1776185507139,500.0,8.219e-05,2]
[420509513,1776185507308,500.0,8.219e-05,2]
[420509514,1776185507514,500.0,8.219e-05,2]
[420509515,1776185507744,184.44329707,8.219e-05,2]
[420509516,1776185512093,184.51547503,8.219e-05,2]
[420509517,1776185515658,500.0,8.219e-05,2]
[420509518,1776185515788,500.0,8.219e-05,2]
[420509519,1776185515974,500.0,8.219e-05,2]
[420509520,1776185516167,500.0,8.219e-05,2]
[420509521,1776185516332,500.0,8.219e-05,2]
[420509522,1776185516507,500.0,8.219e-05,2]
[420509523,1776185516801,500.0,8.219e-05,2]
[420509524,1776185516980,500.0,8.219e-05,2]
[420509525,1776185517550,166.48510694,8.219e-05,2]
[420509526,1776185521412,500.0,8.219e-05,2]
[420509527,1776185521451,501.09110269,8.219e-05,2]
[420509528,1776185527227,155.0,8.219e-05,3]
[420509529,1776185591906,155.0,8.219e-05,3]
[420509530,1776185647205,155.0,8.219e-05,3]
[420509531,1776185698404,500.0,8.776e-05,2]
[420509532,1776185706395,153.0,8.219e-05,3]
[420509533,1776185747971,2884.57,8.776e-05,2]
[420509534,1776185766440,155.0,8.776e-05,3]
[420509535,1776185780789,1000.0,8.776e-05,2]
[420509536,1776185828015,155.0,8.776e-05,3]
[420509537,1776185890354,155.0,8.776e-05,3]
[420509542,1776186016347,156.0,8.776e-05,3]
[420509543,1776186016402,153.0,8.776e-05,3]
[420509544,1776186067016,156.0,8.776e-05,3]
[420509546,1776186131593,156.0,8.776e-05,3]
[420509548,1776186187739,156.0,8.776e-05,3]
[420509549,1776186247162,156.0,8.776e-05,3]
[420509550,1776186307000,153.0,8.776e-05,3]
[420509551,1776186308175,156.0,8.776e-05,3]
[420509552,1776186341330,-308.0198,9.079e-05,2]
[420509553,1776186341384,-36.36670373,9.079e-05,2]
[420509554,1776186367924,156.0,8.776e-05,3]
[420509555,1776186428559,156.0,8.776e-05,3]
[420509556,1776186489060,156.0,8.776e-05,3]
[420509557,1776186611107,156.0,8.776e-05,3]
[420509558,1776186611674,153.0,8.776e-05,3]
[420509567,1776186632533,-113.63329627,9.079e-05,2]
[420509568,1776186632574,-500.0,9.08e-05,2]
[420509569,1776186632610,-286.36670373,9.08e-05,2]
[420509570,1776186632725,-213.63329627,9.08e-05,2]
[420509571,1776186632750,-249.97378807,9.08e-05,2]
[420509572,1776186632769,-250.02621193,9.08e-05,2]
[420509573,1776186632795,-468.55102849,9.08e-05,2]
[420509574,1776186632813,-117.81567524,9.532e-05,2]
[420509575,1776186632847,-1082.18432476,9.532e-05,2]
[420509576,1776186632859,-154.0099,9.533e-05,2]
[420509577,1776186632882,-153.0,9.793e-05,3]
[420509578,1776186632907,-504.715,9.987e-05,2]
[420509579,1776186632917,-1746.48,9.987e-05,2]
[420509580,1776186632960,-300.0,9.999e-05,2]
[420509581,1776186632974,-227.6953068,0.0001,2]
[420509582,1776186632992,-151.0,0.0001,2]
[420509583,1776186633005,-1604.25658492,0.0001,2]
[420509584,1776186633021,-150.0,0.0001,2]
[420509585,1776186633049,-150.0,0.0001,2]
[420509586,1776186633070,-177.09,0.000103,2]
[420509587,1776186633128,-189.98,0.000103,2]
[420509588,1776186633232,-1680.0,0.00010485,2]
[420509589,1776186633286,-150.0,0.000106,2]
[420509590,1776186633320,-151.0,0.00010694,2]
[420509591,1776186633335,-151.0,0.00010694,2]
[420509592,1776186633362,-151.0,0.00010694,2]
[420509593,1776186633375,-151.0,0.00010694,2]
[420509594,1776186633393,-151.0,0.00010694,2]
[420509595,1776186633404,-151.0,0.00010694,2]
[420509596,1776186633414,-151.0,0.00010694,2]
[420509597,1776186633430,-151.0,0.00010694,2]
[420509598,1776186633443,-151.0,0.00010694,2]
[420509599,1776186633454,-151.0,0.00010694,2]
[420509600,1776186633464,-151.0,0.00010694,2]
[420509601,1776186633484,-500.0,0.00010694,2]
[420509602,1776186633494,-150.0,0.00010698,2]
[420509603,1776186633504,-500.0,0.00010699,2]
[420509604,1776186633515,-500.0,0.00010699,2]
[420509605,1776186633529,-500.0,0.00010699,2]
[420509606,1776186633541,-602.78448126,0.00010699,2]
[420509607,1776186633551,-500.0,0.00010699,2]
[420509608,1776186633568,-500.0,0.00010699,2]
[420509609,1776186633582,-500.0,0.00010699,2]
[420509610,1776186633592,-500.0,0.00010699,2]
[420509611,1776186633604,-500.0,0.00010699,2]
[420509612,1776186633620,-500.0,0.00010699,2]
[420509613,1776186633632,-500.0,0.00010699,2]
[420509614,1776186633642,-500.0,0.00010699,2]
[420509615,1776186633660,-500.0,0.00010699,2]
[420509616,1776186633671,-500.0,0.00010699,2]
[420509617,1776186633681,-500.0,0.00010699,2]
[420509618,1776186633694,-500.0,0.00010699,2]
[420509619,1776186633709,-500.0,0.00010699,2]
[420509620,1776186633720,-150.0,0.00010699,2]
[420509621,1776186633729,-500.0,0.00010699,2]
[420509622,1776186633739,-500.0,0.00010699,2]
[420509623,1776186633751,-254.93138207,0.00010699,2]
[420509624,1776186633761,-500.0,0.00010699,2]
[420509625,1776186633770,-500.0,0.00010699,2]
[420509626,1776186633780,-500.0,0.00010699,2]
[420509627,1776186633790,-500.0,0.00010699,2]
[420509628,1776186634186,-500.0,0.00010699,2]
[420509629,1776186634196,-299.99999999,0.00010699,2]